[Event "Turkish Youth Teams U18 2024"]
[Site "Karaman"]
[Date "2024.04.23"]
[Round "5"]
[White "Saskin, Ayaz"]
[Black "Simsek, Ayaz"]
[Result "0-1"]
[ECO "B11"]
[WhiteElo "1696"]
[BlackElo "1867"]
[Annotator "NA RC COMBH"]
[PlyCount "96"]
[EventDate "2024.04.21"]
[EventType "team-tourn"]
[EventCountry "TUR"]
[SourceTitle "playchess.com"]
[Source "ChessBase"]
[SourceQuality "1"]
[TimeControl "5400+30"]

1. e4 {[%emt 0:01:00]} c6 {[%emt 0:02:00]} 2. Nc3 {[%emt 0:01:30]} d5 {[%emt 0:00:30]} 3. Nf3 {[%emt 0:00:00]} dxe4 {[%emt 0:00:30]} 4. Nxe4 {[%emt 0:00:00]} Nf6 {[%emt 0:01:30]} 5. Qe2 {[%emt 0:01:30]} Nxe4 {[%emt 0:01:30]} 6. Qxe4 {[%emt 0:00:30]} Nd7 {[%emt 0:02:30] B11: Caro-Kann: Two Knights Variation.} 7. Bc4 {[%emt 0:01:30]} Nf6 {[%emt 0:01:30] [#]} 8. Ne5 $1 {[%emt 0:01:30]} e6 {[%emt 0:02:30]} 9. Qe2 {[%emt 0:00:00]} b5 {[%emt 0:08:30]} 10. Bd3 {[%emt 0:02:00]} (10. Nxc6 Qc7 11. Bd3 (11. Bxb5 $2 {too greedy.} a6 $19) 11... a6 $11 (11... Qxc6 $2 12. Bxb5 $18)) 10... Qc7 {[%emt 0:01:30]} 11. a4 {[%emt 0:04:30]} Bd6 {[%emt 0:00:30] The main line 11...Bd6 scores better than 11...b4.} 12. Nf3 {[%emt 0:07:30]} (12. Nxc6 $1 $14 b4 (12... Qxc6 $2 {perishes.} 13. Bxb5 $18) 13. Nd4) 12... b4 $146 {[%emt 0:03:30]} ({Predecessor:} 12... O-O 13. Ng5 h6 14. Ne4 Nxe4 15. Bxe4 f5 16. Bf3 e5 17. g3 e4 18. Bg2 Be6 {1-0 Dobrovoljc,V (2377)-Tica,S (2396) Mitropa Cup Online 2021 (4.4)}) 13. O-O {[%emt 0:01:30]} O-O {[%emt 0:03:30]} 14. b3 {[%emt 0:05:30]} Nd5 {[%emt 0:12:30]} 15. Bc4 {[%emt 0:16:30]} Nf4 {[%emt 0:07:30]} 16. Qe3 {[%emt 0:06:30]} c5 {[%emt 0:06:30]} 17. d4 {[%emt 0:09:30] [#]} (17. Bb2 $15) 17... cxd4 $1 {[%emt 0:03:30]} 18. Qxd4 {[%emt 0:04:30]} Bb7 {[%emt 0:04:30]} 19. Bb2 {[%emt 0:14:30]} f6 {[%emt 0:01:30]} 20. Rfe1 {[%emt 0:01:38]} (20. Qe3 $17 {was the only chance.}) 20... Bxf3 {[%emt 0:01:30]} (20... Bc5 $142 21. Qd1 Rad8) 21. gxf3 {[%emt 0:00:30]} Be5 {[%emt 0:00:30]} 22. Rxe5 {[%emt 0:00:56]} fxe5 {[%emt 0:00:00]} 23. Qxe5 {[%emt 0:00:00]} Qf7 {[%emt 0:04:00]} 24. Kh1 $1 {[%emt 0:06:26]} Rae8 {[%emt 0:04:30]} 25. Qe4 {[%emt 0:00:58]} Ng6 {[%emt 0:05:30]} 26. Be2 {[%emt 0:03:19]} Qf4 {[%emt 0:01:46]} 27. Bd4 {[%emt 0:00:30]} a5 {[%emt 0:08:13]} 28. Be3 {[%emt 0:04:52]} Qc7 $11 {[%emt 0:04:50]} (28... Qf5 $17 29. Rd1 Rd8 30. Rxd8 Rxd8) 29. Bd3 {[%emt 0:01:08]} (29. Bb5 $11 {remains equal.}) 29... Rf5 {[%emt 0:02:08]} 30. Rg1 {[%emt 0:01:47]} Qf7 {[%emt 0:00:30]} 31. Rg3 {[%emt 0:00:30]} Ne5 {[%emt 0:00:30]} 32. Qh4 {[%emt 0:00:30]} Nxd3 {[%emt 0:02:19]} 33. cxd3 {[%emt 0:01:27]} Rxf3 {[%emt 0:00:00]} 34. Rg5 {[%emt 0:00:18]} Rxe3 {[%emt 0:02:58]} 35. fxe3 {[%emt 0:00:30]} Qf1+ {[%emt 0:00:00]} 36. Rg1 {[%emt 0:00:00]} Qf3+ {[%emt 0:00:00]} 37. Rg2 {[%emt 0:00:11]} Rc8 {[%emt 0:00:26]} 38. h3 {[%emt 0:00:30]} Qxe3 {[%emt 0:00:00]} 39. Qg4 {[%emt 0:02:17]} Rc1+ {[%emt 0:01:11]} 40. Kh2 {[%emt 0:00:33]} Qe5+ {[%emt 0:00:01]} 41. Rg3 {[%emt 0:01:01]} Rc2+ {[%emt 0:01:21]} 42. Kh1 {[%emt 0:00:07]} Qd5+ {[%emt 0:01:04]} 43. Rg2 {[%emt 0:01:19]} Rxg2 {[%emt 0:00:30]} 44. Qxg2 {[%emt 0:00:00]} Kf7 {[%emt 0:00:32]} 45. Qxd5 {[%emt 0:00:05]} exd5 {[%emt 0:00:30]} 46. Kg2 {[%emt 0:00:00]} Ke6 {[%emt 0:00:00]} 47. Kf3 {[%emt 0:00:20]} Ke5 {[%emt 0:00:18]} 48. Ke3 {[%emt 0:00:00]} g5 {[%emt 0:00:12]} 0-1

[Event "Turkish Youth Teams U18 2024"]
[Site "Karaman"]
[Date "2024.04.23"]
[Round "5"]
[White "Gul, Servet"]
[Black "Ozturk, Onur"]
[Result "1-0"]
[ECO "C26"]
[WhiteElo "1694"]
[BlackElo "1520"]
[Annotator "NA RC COMBH"]
[PlyCount "123"]
[EventDate "2024.04.21"]
[EventType "team-tourn"]
[EventCountry "TUR"]
[SourceTitle "playchess.com"]
[Source "ChessBase"]
[SourceQuality "1"]
[TimeControl "5400+30"]

1. e4 {[%emt 0:01:00]} e5 {[%emt 0:01:00]} 2. Nc3 {[%emt 0:00:00]} Nf6 {[%emt 0:00:00]} 3. d3 {[%emt 0:01:00]} c6 {[%emt 0:03:00]} 4. f4 {[%emt 0:01:30]} d6 {[%emt 0:00:30]} 5. Nf3 {[%emt 0:00:30]} Bg4 {[%emt 0:03:30]} 6. Be2 {[%emt 0:01:30]} Nbd7 {[%emt 0:04:30]} 7. Be3 {[%emt 0:02:30]} Bxf3 {[%emt 0:02:30]} 8. Bxf3 {[%emt 0:01:30]} exf4 {[%emt 0:01:30]} 9. Bxf4 {[%emt 0:00:00]} Ne5 {[%emt 0:00:30]} 10. d4 {[%emt 0:04:00]} Ng6 {[%emt 0:02:30]} 11. Bg3 {[%emt 0:04:30]} Qb6 {[%emt 0:06:30]} 12. Qd2 {[%emt 0:05:30]} O-O-O {[%emt 0:05:30]} 13. O-O {[%emt 0:01:30]} h5 {[%emt 0:01:30]} 14. a4 {[%emt 0:00:30]} h4 {[%emt 0:02:30]} 15. Bf2 {[%emt 0:00:30]} Qc7 {[%emt 0:01:30]} 16. b4 {[%emt 0:00:00]} d5 {[%emt 0:02:30]} 17. e5 {[%emt 0:01:00]} Nd7 {[%emt 0:05:30]} 18. Rab1 {[%emt 0:03:30]} Nb6 {[%emt 0:07:30]} 19. Bg4+ {[%emt 0:01:30]} Kb8 {[%emt 0:00:30]} 20. b5 {[%emt 0:01:30]} Nc4 {[%emt 0:01:30]} 21. Qe1 {[%emt 0:01:30]} Na3 {[%emt 0:04:30]} 22. Rb3 {[%emt 0:03:30]} Nxc2 {[%emt 0:09:30]} 23. Qc1 {[%emt 0:00:00]} Nb4 {[%emt 0:01:30]} 24. Qb1 {[%emt 0:00:00]} Nf4 {[%emt 0:05:30]} 25. Rxb4 {[%emt 0:01:30]} Bxb4 {[%emt 0:00:30]} 26. Qxb4 {[%emt 0:00:00]} Nd3 {[%emt 0:00:30]} 27. Qb1 {[%emt 0:00:00]} Nxf2 {[%emt 0:00:30]} 28. Rxf2 {[%emt 0:00:30]} c5 {[%emt 0:00:30]} 29. Bf3 {[%emt 0:08:30]} cxd4 {[%emt 0:03:30]} 30. Nxd5 {[%emt 0:00:00]} Qxe5 {[%emt 0:00:30]} 31. Re2 {[%emt 0:01:00]} Qg5 {[%emt 0:03:30]} 32. Qe4 {[%emt 0:00:30]} Rd7 {[%emt 0:00:30]} 33. Qxd4 {[%emt 0:00:30]} Rhd8 {[%emt 0:05:15]} 34. Rd2 {[%emt 0:00:30]} h3 {[%emt 0:00:45]} 35. g3 {[%emt 0:01:30]} Qf5 {[%emt 0:02:05]} 36. Rd3 {[%emt 0:02:30]} Rc8 {[%emt 0:02:52]} 37. Qe3 {[%emt 0:09:30]} Rc1+ {[%emt 0:03:24]} 38. Qxc1 {[%emt 0:01:30]} Qxd3 {[%emt 0:00:30]} 39. Qf4+ {[%emt 0:00:00]} Kc8 {[%emt 0:00:00]} 40. Qe4 {[%emt 0:04:00]} Qxe4 {[%emt 0:00:38]} 41. Bxe4 {[%emt 0:00:30]} g6 {[%emt 0:03:00]} 42. g4 {[%emt 0:00:30]} Rd6 {[%emt 0:00:45]} 43. Kf2 {[%emt 0:00:30]} Kd7 {[%emt 0:00:35]} 44. Ke3 {[%emt 0:00:30]} Re6 {[%emt 0:00:30]} 45. Nf4 {[%emt 0:00:30]} Re5 {[%emt 0:00:36]} 46. Nd3 {[%emt 0:04:30]} Re7 {[%emt 0:00:30]} 47. Kd4 {[%emt 0:01:30]} b6 {[%emt 0:02:26]} 48. Kd5 {[%emt 0:00:30]} Kc7 {[%emt 0:02:33]} 49. Ne5 {[%emt 0:00:30]} f6 {[%emt 0:01:46]} 50. Nxg6 {[%emt 0:00:30]} Rd7+ {[%emt 0:00:06]} 51. Ke6 {[%emt 0:02:30]} Rd2 {[%emt 0:00:07]} 52. Kxf6 {[%emt 0:00:30]} Rxh2 {[%emt 0:00:07]} 53. Nf4 {[%emt 0:02:30]} Rf2 {[%emt 0:00:53]} 54. Kf5 {[%emt 0:00:30]} h2 {[%emt 0:00:30]} 55. g5 {[%emt 0:00:30]} Rf1 {[%emt 0:00:30]} 56. g6 {[%emt 0:00:30]} Rg1 {[%emt 0:00:30]} 57. Kf6 {[%emt 0:00:30]} Re1 {[%emt 0:00:00]} 58. Bd5 {[%emt 0:02:30]} Rd1 {[%emt 0:01:18]} 59. g7 {[%emt 0:00:30]} Rxd5 {[%emt 0:00:30]} 60. Nxd5+ {[%emt 0:00:30]} Kd6 {[%emt 0:00:23]} 61. g8=Q {[%emt 0:00:00]} h1=Q {[%emt 0:00:30]} 62. Qf8+ {[%emt 0:00:00]} 1-0

[Event "Turkish Youth Teams U18 2024"]
[Site "Karaman"]
[Date "2024.04.23"]
[Round "5"]
[White "Gunaydin, Mehmet Emir"]
[Black "Bozdag, Armagan Emre"]
[Result "0-1"]
[ECO "B07"]
[WhiteElo "1688"]
[BlackElo "1716"]
[Annotator "NA RC COMBH"]
[PlyCount "128"]
[EventDate "2024.04.21"]
[EventType "team-tourn"]
[EventCountry "TUR"]
[SourceTitle "playchess.com"]
[Source "ChessBase"]
[SourceQuality "1"]
[TimeControl "5400+30"]

1. e4 {[%emt 0:01:00]} c5 {[%emt 0:01:00]} 2. c3 {[%emt 0:00:00]} d6 {[%emt 0:00:00]} 3. d4 {[%emt 0:00:00]} Nf6 {[%emt 0:00:00]} 4. Bd3 {[%emt 0:01:30]} g6 {[%emt 0:00:00]} 5. Nf3 {[%emt 0:00:30]} cxd4 {[%emt 0:00:00]} 6. cxd4 {[%emt 0:00:30]} Bg4 {[%emt 0:00:30]} 7. h3 {[%emt 0:01:30]} Bxf3 {[%emt 0:00:00]} 8. Qxf3 {[%emt 0:00:00]} Nc6 {[%emt 0:00:00]} 9. Be3 {[%emt 0:12:00]} Bg7 {[%emt 0:00:00]} 10. O-O {[%emt 0:00:30]} O-O {[%emt 0:00:00]} 11. Nc3 {[%emt 0:01:30]} Nd7 {[%emt 0:00:30]} 12. Ne2 {[%emt 0:02:30]} Nde5 {[%emt 0:00:00]} 13. dxe5 {[%emt 0:02:30]} Nxe5 {[%emt 0:00:00]} 14. Qg3 {[%emt 0:01:30]} Nxd3 {[%emt 0:00:00]} 15. Bd4 {[%emt 0:00:30]} Bxd4 {[%emt 0:03:00]} 16. Nxd4 {[%emt 0:05:30]} Ne5 {[%emt 0:04:30]} 17. Rac1 {[%emt 0:12:30]} Qd7 {[%emt 0:16:30]} 18. f4 {[%emt 0:06:30]} Nc6 {[%emt 0:00:30]} 19. Nf3 {[%emt 0:08:30]} Qe6 {[%emt 0:07:30]} 20. Ng5 {[%emt 0:21:30]} Qf6 {[%emt 0:10:30]} 21. Qh4 {[%emt 0:00:39]} Qg7 {[%emt 0:04:30]} 22. f5 {[%emt 0:03:19]} h6 {[%emt 0:07:30]} 23. Nf3 {[%emt 0:00:20]} g5 {[%emt 0:00:30]} 24. Qh5 {[%emt 0:03:42]} Rac8 {[%emt 0:14:30]} 25. Nh2 {[%emt 0:03:54]} Ne5 {[%emt 0:01:30]} 26. Qe2 {[%emt 0:04:44]} a6 {[%emt 0:07:30]} 27. Kh1 {[%emt 0:00:30]} Kh7 {[%emt 0:00:30]} 28. f6 {[%emt 0:00:30]} exf6 {[%emt 0:00:30]} 29. Ng4 {[%emt 0:01:29]} Nxg4 {[%emt 0:04:16]} 30. Qxg4 {[%emt 0:00:04]} Rxc1 {[%emt 0:07:59]} 31. Rxc1 {[%emt 0:00:03]} f5 {[%emt 0:00:37]} 32. Qxf5+ {[%emt 0:01:50]} Kg8 {[%emt 0:00:06]} 33. Rd1 {[%emt 0:01:15]} Qxb2 {[%emt 0:03:37]} 34. Rxd6 {[%emt 0:00:30]} Kg7 {[%emt 0:04:08]} 35. Kh2 {[%emt 0:01:25]} Re8 {[%emt 0:00:52]} 36. Rd7 {[%emt 0:02:06]} Qe5+ {[%emt 0:00:37]} 37. Qxe5+ {[%emt 0:00:30]} Rxe5 {[%emt 0:00:30]} 38. Rxb7 {[%emt 0:00:30]} Rxe4 {[%emt 0:00:30]} 39. Rb2 {[%emt 0:00:30]} Ra4 {[%emt 0:01:04]} 40. Kg3 {[%emt 0:00:00]} Ra3+ {[%emt 0:01:49]} 41. Kf2 {[%emt 0:00:15]} f5 {[%emt 0:01:15]} 42. Ke2 {[%emt 0:01:08]} Kf6 {[%emt 0:00:33]} 43. Kd2 {[%emt 0:01:02]} Ke5 {[%emt 0:00:43]} 44. Ke2 {[%emt 0:00:24]} g4 {[%emt 0:01:25]} 45. hxg4 {[%emt 0:00:54]} fxg4 {[%emt 0:00:30]} 46. Kf2 {[%emt 0:00:00]} h5 {[%emt 0:00:46]} 47. Ke2 {[%emt 0:00:37]} h4 {[%emt 0:00:30]} 48. Kf2 {[%emt 0:00:48]} g3+ {[%emt 0:00:37]} 49. Ke2 {[%emt 0:00:38]} Kf4 {[%emt 0:00:31]} 50. Rb4+ {[%emt 0:00:55]} Kg5 {[%emt 0:00:01]} 51. Rb2 {[%emt 0:00:04]} a5 {[%emt 0:00:30]} 52. Rc2 {[%emt 0:00:00]} Ra4 {[%emt 0:00:49]} 53. Kf3 {[%emt 0:00:13]} Ra3+ {[%emt 0:00:35]} 54. Ke2 {[%emt 0:00:59]} Ra4 {[%emt 0:00:30]} 55. Kf3 {[%emt 0:00:30]} Rf4+ {[%emt 0:00:30]} 56. Ke3 {[%emt 0:00:00]} Rf5 {[%emt 0:00:00]} 57. Rd2 {[%emt 0:00:06]} a4 {[%emt 0:00:30]} 58. Rc2 {[%emt 0:00:28]} h3 {[%emt 0:00:44]} 59. gxh3 {[%emt 0:01:42]} Kh4 {[%emt 0:00:06]} 60. Rc8 {[%emt 0:00:39]} g2 {[%emt 0:00:36]} 61. Rh8+ {[%emt 0:00:32]} Kg3 {[%emt 0:00:01]} 62. Rg8+ {[%emt 0:00:35]} Kh2 {[%emt 0:00:06]} 63. h4 {[%emt 0:00:33]} g1=Q+ {[%emt 0:00:30]} 64. Rxg1 {[%emt 0:00:30]} Kxg1 {[%emt 0:00:00]} 0-1

[Event "Turkish Youth Teams U18 2024"]
[Site "Karaman"]
[Date "2024.04.23"]
[Round "5"]
[White "Aslan, Ela"]
[Black "Cetinavci, Irmak"]
[Result "1-0"]
[ECO "D35"]
[WhiteElo "1659"]
[BlackElo "1607"]
[Annotator "NA RC COMBH"]
[PlyCount "165"]
[EventDate "2024.04.21"]
[EventType "team-tourn"]
[EventCountry "TUR"]
[SourceTitle "playchess.com"]
[Source "ChessBase"]
[SourceQuality "1"]
[TimeControl "5400+30"]

1. d4 d5 2. c4 e6 3. Nc3 Nf6 4. cxd5 exd5 5. Bf4 Bd6 6. Bxd6 Qxd6 7. e3 c6 8. Rc1 Bf5 9. Qb3 Qe7 10. Nf3 O-O 11. Be2 Rc8 12. Ne5 Qc7 13. O-O Qb6 14. Qa3 Nbd7 15. f4 Ne4 16. Nxe4 dxe4 17. Nc4 Qd8 18. Nd6 Be6 19. Nxc8 Qxc8 20. Rfd1 Qd8 21. Qb4 Rb8 22. b3 Qh4 23. a4 Nf6 24. Rc2 Nd5 25. Qd2 Nf6 26. Bc4 Bg4 27. Rdc1 Bd7 28. d5 Ng4 29. h3 Nh6 30. dxc6 Bxc6 31. Rd1 Nf5 32. Qf2 Qf6 33. Rcd2 h5 34. Bd5 Bxd5 35. Rxd5 h4 36. Qd2 Kh7 37. Re5 Ng3 38. Rc5 Qb6 39. b4 Qe6 40. Qd5 Qg6 41. Qg5 Qxg5 42. fxg5 Kg6 43. Rd7 Nf5 44. Kf2 b6 45. Rcc7 Kxg5 46. Rxa7 f6 47. b5 Rc8 48. Rac7 Ra8 49. Rc4 Rb8 50. Rxe4 Rc8 51. Rg4+ Kh6 52. Rb7 Rc2+ 53. Kf3 Rc3 54. Re4 Rc1 55. Ke2 Rc2+ 56. Kd3 Rxg2 57. Rxb6 Rg3 58. a5 Rxh3 59. a6 Rh1 60. a7 Ra1 61. Ra6 Rd1+ 62. Kc3 Rc1+ 63. Kb2 Rc8 64. a8=Q Rxa8 65. Rxa8 Kg5 66. b6 Ng3 67. Rxh4 Kxh4 68. b7 Nf5 69. b8=Q Nxe3 70. Qf4+ Kh5 71. Rh8+ Kg6 72. Qxe3 f5 73. Rh3 Kf6 74. Rg3 g6 75. Qg5+ Ke5 76. Qxg6 f4 77. Rf3 Kd5 78. Rxf4 Ke5 79. Qf6+ Kd5 80. Rd4+ Kc5 81. Qd6+ Kb5 82. Rb4+ Ka5 83. Qb6# 1-0

[Event "Turkish Youth Teams U18 2024"]
[Site "Karaman"]
[Date "2024.04.23"]
[Round "5"]
[White "Nurdogan, Ilgin Destina"]
[Black "Aydin, Erem"]
[Result "1-0"]
[ECO "B40"]
[WhiteElo "1633"]
[BlackElo "1546"]
[Annotator "NA RC COMBH"]
[PlyCount "84"]
[EventDate "2024.04.21"]
[EventType "team-tourn"]
[EventCountry "TUR"]
[SourceTitle "playchess.com"]
[Source "ChessBase"]
[SourceQuality "1"]
[TimeControl "5400+30"]

1. e4 {[%emt 0:01:00]} c5 {[%emt 0:01:00]} 2. Nf3 {[%emt 0:00:30]} e6 {[%emt 0:00:30]} 3. g3 {[%emt 0:00:00]} d6 {[%emt 0:01:30]} 4. Bg2 {[%emt 0:01:00]} g6 {[%emt 0:00:30]} 5. O-O {[%emt 0:00:30]} Bg7 {[%emt 0:00:30]} 6. d4 {[%emt 0:01:30]} cxd4 {[%emt 0:00:00]} 7. Nxd4 {[%emt 0:00:30]} a6 {[%emt 0:00:00]} 8. c4 {[%emt 0:00:00]} Qc7 {[%emt 0:00:30]} 9. Qd3 {[%emt 0:01:00]} Ne7 {[%emt 0:08:30]} 10. Rd1 {[%emt 0:04:30]} O-O {[%emt 0:02:30]} 11. Nc3 {[%emt 0:05:30]} Rd8 {[%emt 0:06:30]} 12. Be3 {[%emt 0:05:30]} Nbc6 {[%emt 0:05:30]} 13. f4 {[%emt 0:03:30]} Nxd4 {[%emt 0:06:30]} 14. Bxd4 {[%emt 0:00:30]} Bxd4+ {[%emt 0:00:30]} 15. Qxd4 {[%emt 0:00:00]} Nc6 {[%emt 0:01:30]} 16. Qe3 {[%emt 0:09:00]} b6 {[%emt 0:16:30]} 17. e5 {[%emt 0:06:30]} Rb8 {[%emt 0:02:30]} 18. exd6 {[%emt 0:03:30]} Rxd6 {[%emt 0:00:30]} 19. Rxd6 {[%emt 0:00:30]} Qxd6 {[%emt 0:00:30]} 20. Rd1 {[%emt 0:00:30]} Qc7 {[%emt 0:02:30]} 21. Bxc6 {[%emt 0:00:00]} Qxc6 {[%emt 0:01:30]} 22. Rd8+ {[%emt 0:00:00]} Kg7 {[%emt 0:00:00]} 23. Qe5+ {[%emt 0:00:00]} Kh6 {[%emt 0:08:00]} 24. Qxb8 {[%emt 0:00:00]} Bb7 {[%emt 0:01:30]} 25. Kf2 {[%emt 0:04:30]} Qg2+ {[%emt 0:26:35]} 26. Ke3 {[%emt 0:00:30]} Qg1+ {[%emt 0:00:41]} 27. Kd2 {[%emt 0:00:30]} Qxh2+ {[%emt 0:00:57]} 28. Ne2 {[%emt 0:00:30]} Bf3 {[%emt 0:01:25]} 29. Qe5 {[%emt 0:00:00]} Bxe2 {[%emt 0:02:26]} 30. Qxe2 {[%emt 0:00:00]} Qxg3 {[%emt 0:00:00]} 31. Qe3 {[%emt 0:02:30]} Qg2+ {[%emt 0:00:30]} 32. Kc3 {[%emt 0:00:30]} Kg7 {[%emt 0:01:08]} 33. Qe5+ {[%emt 0:00:30]} Kh6 {[%emt 0:00:13]} 34. Rd2 {[%emt 0:00:30]} Qg1 {[%emt 0:00:30]} 35. Rd3 {[%emt 0:02:30]} Qc1+ {[%emt 0:02:07]} 36. Kb3 {[%emt 0:00:30]} Qf1 {[%emt 0:00:00]} 37. Rc3 {[%emt 0:01:30]} Qd1+ {[%emt 0:00:17]} 38. Ka3 {[%emt 0:02:30]} Qf1 {[%emt 0:00:27]} 39. Qf6 {[%emt 0:00:30]} b5 {[%emt 0:00:33]} 40. cxb5 {[%emt 0:00:30]} axb5 {[%emt 0:00:30]} 41. Qxf7 {[%emt 0:00:30]} e5 {[%emt 0:00:30]} 42. Qf8+ {[%emt 0:04:30]} Kh5 {[%emt 0:00:00]} 1-0

[Event "Turkish Youth Teams U18 2024"]
[Site "Karaman"]
[Date "2024.04.23"]
[Round "5"]
[White "Iyican, Sude"]
[Black "Engel, Ecrin Tuana"]
[Result "1-0"]
[ECO "A65"]
[WhiteElo "1562"]
[BlackElo "1619"]
[Annotator "NA RC COMBH"]
[PlyCount "65"]
[EventDate "2024.04.21"]
[EventType "team-tourn"]
[EventCountry "TUR"]
[SourceTitle "playchess.com"]
[Source "ChessBase"]
[SourceQuality "1"]
[TimeControl "5400+30"]

1. d4 {[%emt 0:01:00]} Nf6 {[%emt 0:01:00]} 2. c4 {[%emt 0:00:30]} c5 {[%emt 0:00:00]} 3. d5 {[%emt 0:00:00]} e6 {[%emt 0:00:00]} 4. Nc3 {[%emt 0:00:00]} exd5 {[%emt 0:00:30]} 5. cxd5 {[%emt 0:00:00]} d6 {[%emt 0:00:30]} 6. e4 {[%emt 0:00:00]} g6 {[%emt 0:00:00]} 7. Nge2 {[%emt 0:00:30]} Bg7 {[%emt 0:00:00]} 8. Ng3 {[%emt 0:00:30]} O-O {[%emt 0:01:30]} 9. Bd3 {[%emt 0:01:30]} a6 {[%emt 0:02:30]} 10. a4 {[%emt 0:00:30]} Re8 {[%emt 0:02:30]} 11. O-O {[%emt 0:00:30]} h5 {[%emt 0:05:30]} 12. Bg5 {[%emt 0:01:30]} Qb6 {[%emt 0:02:30]} 13. Qd2 {[%emt 0:01:30]} Ng4 {[%emt 0:02:30]} 14. a5 {[%emt 0:05:30]} Qc7 {[%emt 0:02:30]} 15. f4 {[%emt 0:03:30]} c4 {[%emt 0:13:30]} 16. Bc2 {[%emt 0:08:30]} Qc5+ {[%emt 0:04:30]} 17. Kh1 {[%emt 0:00:30]} Qe3 {[%emt 0:08:30]} 18. f5 {[%emt 0:11:30]} Qxd2 {[%emt 0:11:30]} 19. Bxd2 {[%emt 0:00:30]} Be5 {[%emt 0:01:30]} 20. Rf3 {[%emt 0:16:30]} Bd7 {[%emt 0:11:30]} 21. Raf1 {[%emt 0:02:30]} h4 {[%emt 0:06:30]} 22. h3 {[%emt 0:01:30]} Nh2 {[%emt 0:02:30]} 23. Kxh2 {[%emt 0:01:30]} Bxg3+ {[%emt 0:00:30]} 24. Kh1 {[%emt 0:00:30]} gxf5 {[%emt 0:00:30]} 25. exf5 {[%emt 0:00:00]} Bb5 {[%emt 0:01:10]} 26. Bf4 {[%emt 0:01:00]} Be1 {[%emt 0:01:17]} 27. Bxd6 {[%emt 0:01:30]} Bxc3 {[%emt 0:00:19]} 28. bxc3 {[%emt 0:00:30]} Nd7 {[%emt 0:01:25]} 29. f6 {[%emt 0:02:30]} Ne5 {[%emt 0:01:17]} 30. Rf5 {[%emt 0:00:30]} Nd3 {[%emt 0:01:01]} 31. Rg5+ {[%emt 0:00:30]} Kh7 {[%emt 0:01:11]} 32. Rg7+ {[%emt 0:01:30]} Kh8 {[%emt 0:00:38]} 33. Rf5 {[%emt 0:00:30]} 1-0

[Event "Turkish Youth Teams U18 2024"]
[Site "Karaman"]
[Date "2024.04.23"]
[Round "5"]
[White "Cetinavci, Duru"]
[Black "Kilic, Melis"]
[Result "1-0"]
[ECO "B40"]
[WhiteElo "1449"]
[BlackElo "1455"]
[Annotator "NA RC COMBH"]
[PlyCount "65"]
[EventDate "2024.04.21"]
[EventType "team-tourn"]
[EventCountry "TUR"]
[SourceTitle "playchess.com"]
[Source "ChessBase"]
[SourceQuality "1"]
[TimeControl "5400+30"]

1. e4 {[%emt 0:01:00]} c5 {[%emt 0:01:00]} 2. Nf3 {[%emt 0:00:30]} e6 {[%emt 0:00:00]} 3. d4 {[%emt 0:00:00]} cxd4 {[%emt 0:00:00]} 4. Nxd4 {[%emt 0:00:00]} Nf6 {[%emt 0:00:00]} 5. Bd3 {[%emt 0:00:00]} Nc6 {[%emt 0:00:00]} 6. Nxc6 {[%emt 0:00:00]} bxc6 {[%emt 0:00:30]} 7. O-O {[%emt 0:00:30]} d5 {[%emt 0:01:30]} 8. Nd2 {[%emt 0:00:30]} Bd6 {[%emt 0:05:30]} 9. f4 {[%emt 0:18:30]} dxe4 {[%emt 0:05:30]} 10. Nxe4 {[%emt 0:01:30]} Be7 {[%emt 0:06:30]} 11. Qf3 {[%emt 0:10:30]} O-O {[%emt 0:06:30]} 12. Be3 {[%emt 0:11:30]} Nd5 {[%emt 0:26:30]} 13. Bf2 {[%emt 0:14:30]} Nb4 {[%emt 0:08:30]} 14. Rfd1 {[%emt 0:10:30]} Qc7 {[%emt 0:19:56]} 15. Be2 {[%emt 0:12:36]} Nxc2 {[%emt 0:07:20]} 16. Rac1 {[%emt 0:00:30]} Nb4 {[%emt 0:00:30]} 17. a3 {[%emt 0:00:30]} Nd5 {[%emt 0:00:14]} 18. g3 {[%emt 0:06:45]} Bd7 {[%emt 0:03:43]} 19. Bd4 {[%emt 0:03:33]} f6 {[%emt 0:02:21]} 20. Bd3 {[%emt 0:02:31]} e5 {[%emt 0:02:15]} 21. Bc5 {[%emt 0:02:15]} Bxc5+ {[%emt 0:00:38]} 22. Nxc5 {[%emt 0:00:10]} exf4 {[%emt 0:01:02]} 23. gxf4 {[%emt 0:01:40]} Qb6 {[%emt 0:00:58]} 24. Kh1 {[%emt 0:00:30]} Rad8 {[%emt 0:00:30]} 25. Nxd7 {[%emt 0:00:30]} Rxd7 {[%emt 0:00:30]} 26. Qh3 {[%emt 0:00:30]} g6 {[%emt 0:00:30]} 27. Qxd7 {[%emt 0:00:30]} Nxf4 {[%emt 0:00:48]} 28. Qxc6 {[%emt 0:01:00]} Qxb2 {[%emt 0:00:36]} 29. Qc4+ {[%emt 0:00:15]} Rf7 {[%emt 0:00:23]} 30. Qxf4 {[%emt 0:00:37]} Kg7 {[%emt 0:00:26]} 31. Bc4 {[%emt 0:00:07]} Re7 {[%emt 0:00:17]} 32. Re1 {[%emt 0:01:02]} Rxe1+ {[%emt 0:00:22]} 33. Rxe1 {[%emt 0:00:16]} 1-0

[Event "Turkish Youth Teams U18 2024"]
[Site "Karaman"]
[Date "2024.04.23"]
[Round "6"]
[White "Tarhan, Adar"]
[Black "Ersoz, Teoman Guney"]
[Result "1-0"]
[ECO "B27"]
[WhiteElo "2446"]
[BlackElo "2123"]
[Annotator "TA"]
[PlyCount "57"]
[EventDate "2024.04.21"]
[EventType "team-tourn"]
[EventCountry "TUR"]
[SourceTitle "playchess.com"]
[Source "ChessBase"]
[SourceQuality "1"]
[TimeControl "5400+30"]

{[%evp 9,57,9,13,8,25,25,52,6,70,74,61,69,104,70,91,101,87,94,103,66,86,73,174,193,169,175,185,105,138,125,247,257,261,253,303,327,347,258,255,264,369,385,383,271,278,260,623,568,597,506]} 1. e4 c5 2. Nf3 g6 3. c3 d5 4. e5 Nc6 5. d4 Bg4 6. Bb5 Qb6 7. Bxc6+ bxc6 8. Nbd2 (8. dxc5 $14 Bxf3 9. Qxf3 Qxc5 10. O-O) 8... Qb5 ({Better is} 8... cxd4 $11 9. cxd4 h6) 9. dxc5 $14 Qxc5 10. O-O Bg7 11. Re1 Nh6 12. h3 Bxf3 13. Nxf3 O-O {Black is weak on the dark squares} 14. Nd4 Qc4 15. Bg5 f6 (15... e6 $16) 16. exf6 $18 exf6 17. Bxh6 Bxh6 18. Re7 ({White should try} 18. Qf3 $18) 18... Rfe8 19. Rc7 {White has more active pieces.} Rac8 (19... Re4 $16 20. g3 (20. Rxc6 $2 {perishes.} Rxd4 21. Qxd4 Qxc6 $19) (20. Nxc6 Kh8 $18) 20... Rae8) 20. Rxc8 Rxc8 21. Qe1 {[#] Hoping for Qe6+.} Rf8 22. Qe6+ Kh8 23. Qxc6 ({Don't play} 23. Nxc6 Qb5 24. Rb1 (24. Nxa7 Qxb2 25. Rd1 Qxa2 $16) 24... Qc4) 23... Qxc6 24. Nxc6 {KRB-KRN} Rc8 {[%cal Bf8c8,Bc8b8,Bb8b2][%mdl 32]} 25. Nxa7 Rb8 26. a4 {[%cal Ba2a4,Ba4a5,Ba5a6][%mdl 32]} Rxb2 27. a5 Bd2 $2 (27... Bf8 28. Nc6 Rc2) 28. a6 {[#] Black must now prevent Nc6.} Bf4 29. Nc6 {Weighted Error Value: White=0.21 (precise) /Black=0.54.  Mistake:       	White=2     	Black=4      Inaccurate:     	White=2     	Black=4      OK:         	White=12    	Black=3      Best:        	---       	Black=1} 1-0